bitfinex-derivatives/quotes_SOLF0:USTF0_20260116
["timestamp","ask_amount","ask_price","bid_price","bid_amount"]
[1768523792849,3.52974427,142.8,142.69,101.57339624]
[1768523793444,3.52974427,142.8,142.69,98.1374]
[1768523793842,3.52974427,142.78,142.72,6.3075]
[1768523797049,9.83484427,142.78,142.72,6.3075]
[1768523799150,3.52974427,142.78,142.73,6.3071]
[1768523800249,9.83474427,142.78,142.72,6.3076]
[1768523805567,3.52974427,142.78,142.69,98.1349]
[1768523806772,3.52974427,142.78,142.73,6.3069]
[1768523807662,3.52974427,142.78,142.72,6.3075]
[1768523808872,9.83484427,142.78,142.72,6.3075]
[1768523809271,3.52974427,142.78,142.72,6.3075]
[1768523810269,9.83464427,142.78,142.72,6.3075]
[1768523811668,101.48889624,142.82,142.72,6.3075]
[1768523811669,6.3045,142.79,142.72,6.3075]
[1768523812072,9.85065875,142.79,142.72,6.3075]
[1768523814373,3.54615875,142.78,142.72,6.3075]
[1768523820878,3.54615875,142.78,142.73,6.3069]
[1768523823780,3.54615875,142.81,142.71,98.1253]
[1768523824480,3.54615875,142.8,142.74,6.3067]
[1768523825280,12.6043,142.85,142.74,6.3067]
[1768523825281,3.54615875,142.9,142.78,98.0766]
[1768523825486,3.54615875,142.9,142.76,98.0882]
[1768523825487,3.54615875,142.88,142.76,98.0882]
[1768523825673,3.54615875,142.86,142.76,98.0882]
[1768523826781,3.54615875,142.86,142.8,6.304]
[1768523827784,3.54615875,142.86,142.81,6.3034]
[1768523830180,3.54615875,142.86,142.82,6.3031]
[1768523830382,5.875e-05,142.86,142.82,6.3031]
[1768523832184,5.875e-05,142.86,142.8,6.3038]
[1768523833283,5.875e-05,142.86,142.78,6.3046]
[1768523833988,6.30155875,142.86,142.79,6.3044]
[1768523836296,3.54615875,142.85,142.79,6.3044]
[1768523840595,3.54615875,142.84,142.77,6.3051]
[1768523840786,3.54615875,142.84,142.73,98.1101]
[1768523841789,9.89598994,142.83,142.76,6.3057]
[1768523842187,3.59318994,142.82,142.76,6.3057]
[1768523855196,9.89638994,142.82,142.76,6.3057]
[1768523857998,9.89638994,142.82,142.75,6.3063]
[1768523862306,3.37991048,142.81,142.75,6.3063]
[1768523872710,3.56915036,142.8,142.69,98.1344]
[1768523872909,3.56915036,142.8,142.7,2.19866139]
[1768523873910,9.87365036,142.79,142.73,6.3071]
[1768523878012,2.19866139,142.81,142.71,6.3078]
[1768523878013,9.87415036,142.78,142.71,6.3078]
[1768523878808,9.87415036,142.78,142.69,2.19866139]
[1768523878809,3.56915036,142.76,142.69,6.3085]
[1768523879308,3.56915036,142.78,142.7,6.3084]
[1768523879508,3.56915036,142.78,142.7,2.19866139]
[1768523879714,3.56915036,142.78,142.68,2.19866139]
[1768523879909,3.56915036,142.77,142.68,2.19866139]
[1768523880918,3.56915036,142.77,142.71,6.3079]
[1768523888331,9.87475036,142.77,142.69,6.3085]
[1768523888727,9.87475036,142.77,142.68,2.19866139]
[1768523889029,3.56915036,142.77,142.71,6.308]
[1768523901242,3.41061028,142.76,142.71,6.308]
[1768523911355,6.305,142.78,142.71,6.308]
[1768523911557,9.8101609,142.78,142.72,6.3075]
[1768523912150,3.5051609,142.77,142.72,6.3075]
[1768523915858,3.5051609,142.77,142.68,98.1456]
[1768523916761,3.5051609,142.77,142.71,6.308]
[1768523918063,3.5051609,142.77,142.72,6.3075]
[1768523933378,3.5051609,142.77,142.73,6.3071]
[1768523934467,3.55946297,142.79,142.74,6.3066]
[1768523934671,5.40163653,142.78,142.74,6.3066]
[1768523934869,3.55946297,142.79,142.74,6.3066]
[1768523935169,5.40163543,142.78,142.74,6.3066]
[1768523935471,3.55946297,142.79,142.74,6.3066]
[1768523935675,8.96035306,142.78,142.74,6.3066]
[1768523935873,3.55946297,142.78,142.74,6.3066]
[1768523942282,3.55946297,142.78,142.73,6.3068]
[1768523946383,5.39884576,142.77,142.73,6.3068]
[1768523946583,3.55946297,142.78,142.73,6.3068]
[1768523946784,5.39884576,142.77,142.73,6.3068]
[1768523947080,3.55946297,142.78,142.73,6.3068]
[1768523947383,5.39892322,142.77,142.73,6.3068]
[1768523947570,3.55946297,142.78,142.73,6.3068]
[1768523947774,5.38439074,142.77,142.73,6.3068]
[1768523947976,3.55946297,142.78,142.73,6.3068]
[1768523948175,5.38439074,142.77,142.73,6.3068]
[1768523948379,3.55946297,142.78,142.73,6.3068]
[1768523948581,5.38449233,142.77,142.73,6.3068]
[1768523948783,3.55946297,142.78,142.73,6.3068]
[1768523948986,5.38449233,142.77,142.73,6.3068]
[1768523949289,3.55946297,142.78,142.73,6.3068]
[1768523949585,5.38459766,142.77,142.73,6.3068]
[1768523949778,3.55946297,142.78,142.73,6.3068]
[1768523949977,5.38459766,142.77,142.73,6.3068]
[1768523950178,3.55946297,142.78,142.73,6.3068]
[1768523950378,5.38473311,142.77,142.73,6.3068]
[1768523950577,3.55946297,142.78,142.73,6.3068]
[1768523950779,5.38469699,142.77,142.73,6.3068]
[1768523951073,3.55946297,142.78,142.73,6.3068]
[1768523951276,5.38482067,142.77,142.73,6.3068]
[1768523951477,3.55946297,142.78,142.73,6.3068]
[1768523951678,5.38482067,142.77,142.73,6.3068]
[1768523951878,3.55946297,142.78,142.73,6.3068]
[1768523952089,5.38482067,142.77,142.73,6.3068]
[1768523952280,3.55946297,142.78,142.73,6.3068]
[1768523952480,5.38494991,142.77,142.73,6.3068]
[1768523952682,3.55946297,142.78,142.73,6.3068]
[1768523952882,5.38494991,142.77,142.73,6.3068]
[1768523953082,3.55946297,142.78,142.73,6.3068]
[1768523953382,5.38507823,142.77,142.73,6.3068]
[1768523953581,3.55946297,142.78,142.73,6.3068]
[1768523953788,5.38511434,142.77,142.73,6.3068]
[1768523953986,3.55946297,142.78,142.73,6.3068]
[1768523954192,5.38511434,142.77,142.73,6.3068]
[1768523954390,3.55946297,142.78,142.73,6.3068]
[1768523954590,5.38510129,142.77,142.73,6.3068]
[1768523954890,3.55946297,142.78,142.73,6.3068]
[1768523955091,5.38506518,142.77,142.73,6.3068]
[1768523955279,3.55946297,142.78,142.73,6.3068]
[1768523955482,5.38506273,142.77,142.73,6.3068]
[1768523955683,3.55946297,142.78,142.73,6.3068]
[1768523955883,5.38506273,142.77,142.73,6.3068]
[1768523956095,3.55946297,142.78,142.73,6.3068]
[1768523956295,5.38506021,142.77,142.73,6.3068]
[1768523956496,3.55946297,142.78,142.73,6.3068]
[1768523956699,5.38506021,142.77,142.73,6.3068]
[1768523956899,3.55946297,142.78,142.73,6.3068]
[1768523957099,5.38506021,142.77,142.73,6.3068]
[1768523957397,3.55946297,142.78,142.73,6.3068]
[1768523957599,5.38504666,142.77,142.73,6.3068]
[1768523957794,3.55946297,142.78,142.73,6.3068]
[1768523957985,5.38504666,142.77,142.73,6.3068]
[1768523958192,3.55946297,142.78,142.73,6.3068]
[1768523958392,5.38506064,142.77,142.73,6.3068]
[1768523958593,3.55946297,142.78,142.73,6.3068]
[1768523958800,5.38506064,142.77,142.73,6.3068]
[1768523959100,3.55946297,142.78,142.73,6.3068]
[1768523959303,5.38504085,142.77,142.73,6.3068]
[1768523959503,3.55946297,142.78,142.73,6.3068]
[1768523959693,8.94450382,142.77,142.73,6.3068]
[1768523959889,3.55946297,142.77,142.71,6.3076]
[1768523960094,8.94478877,142.76,142.69,98.1385]
[1768523960291,3.55946297,142.76,142.67,110.7679]
[1768523960700,3.55946297,142.76,142.71,6.308]
[1768523962097,3.55946297,142.76,142.67,98.1491]
[1768523963798,3.55946297,142.76,142.7,6.3084]
[1768523964997,3.53809028,142.78,142.71,6.3079]
[1768523965202,8.9206657,142.77,142.71,6.3079]
[1768523965502,5.38257542,142.76,142.71,6.3079]
[1768523965698,3.53809028,142.77,142.71,6.3079]
[1768523965898,5.3822399,142.76,142.71,6.3079]
[1768523966204,3.53809028,142.77,142.71,6.3079]
[1768523966502,5.3819356,142.76,142.71,6.3079]
[1768523966698,3.53809028,142.77,142.71,6.3079]
[1768523966896,5.3819356,142.76,142.71,6.3079]
[1768523967096,3.53809028,142.77,142.71,6.3079]
[1768523967296,5.38165364,142.76,142.71,6.3079]
[1768523967498,3.53809028,142.77,142.71,6.3079]
[1768523967699,5.38165364,142.76,142.71,6.3079]
[1768523967901,3.53809028,142.77,142.71,6.3079]
[1768523968092,5.38165364,142.76,142.71,6.3079]
[1768523968398,3.53809028,142.77,142.71,6.3079]
[1768523968598,5.3813911,142.76,142.71,6.3079]
[1768523968805,3.53809028,142.77,142.71,6.3079]
[1768523969103,5.3813911,142.76,142.71,6.3079]
[1768523969305,3.53809028,142.77,142.71,6.3079]
[1768523969505,3.53809028,142.77,142.69,2.19991613]
[1768523969506,3.53809028,142.77,142.72,6.3074]
[1768523979407,9.83107842,142.79,142.73,6.3071]
[1768523979604,5.38732863,142.78,142.73,6.3071]
[1768523979800,9.83107842,142.79,142.73,6.3071]
[1768523980009,5.38732865,142.78,142.73,6.3071]
[1768523980202,9.83107842,142.79,142.73,6.3071]
[1768523980509,5.38766476,142.78,142.73,6.3071]
[1768523980710,9.83107842,142.79,142.73,6.3071]
[1768523980911,5.38766476,142.78,142.73,6.3071]
[1768523981208,9.83107842,142.79,142.73,6.3071]
[1768523981410,5.38801905,142.78,142.73,6.3071]
[1768523981609,9.83107842,142.79,142.73,6.3071]
[1768523981812,5.38801905,142.78,142.73,6.3071]
[1768523982010,9.83107842,142.79,142.73,6.3071]
[1768523982310,5.38801905,142.78,142.73,6.3071]
[1768523982513,9.83107842,142.79,142.73,6.3071]
[1768523982707,5.38839579,142.78,142.73,6.3071]
[1768523982906,9.83107842,142.79,142.73,6.3071]
[1768523983212,5.38839579,142.78,142.73,6.3071]
[1768523983404,9.83107842,142.79,142.73,6.3071]
[1768523983609,5.38868709,142.78,142.73,6.3071]
[1768523983809,9.83107842,142.79,142.73,6.3071]
[1768523984004,5.38868709,142.78,142.73,6.3071]
[1768523984205,9.83107842,142.79,142.73,6.3071]
[1768523984406,5.3889944,142.78,142.73,6.3071]
[1768523984607,9.83107842,142.79,142.73,6.3071]
[1768523984813,5.3889944,142.78,142.73,6.3071]
[1768523985111,3.52657842,142.79,142.73,6.3071]
[1768523985308,5.38903648,142.78,142.73,6.3071]
[1768523985498,3.52657842,142.79,142.73,6.3071]
[1768523985703,5.38903652,142.78,142.73,6.3071]
[1768523985904,3.52657842,142.79,142.73,6.3071]
[1768523986106,5.38903652,142.78,142.73,6.3071]
[1768523986304,3.52657842,142.79,142.73,6.3071]
[1768523986512,5.38938916,142.78,142.73,6.3071]
[1768523986701,3.52657842,142.79,142.73,6.3071]
[1768523987004,5.38938916,142.78,142.73,6.3071]
[1768523987204,3.52657842,142.79,142.73,6.3071]
[1768523987506,5.38976511,142.78,142.73,6.3071]
[1768523987712,3.52657842,142.79,142.73,6.3071]
[1768523987909,5.38976511,142.78,142.73,6.3071]
[1768523988113,3.52657842,142.79,142.73,6.3071]
[1768523988315,5.38974395,142.78,142.73,6.3071]
[1768523988612,3.52657842,142.79,142.73,6.3071]
[1768523988812,5.38974395,142.78,142.73,6.3071]
[1768523989112,3.52657842,142.79,142.73,6.3071]
[1768523989312,5.38975311,142.78,142.73,6.3071]
[1768523989615,3.52657842,142.79,142.73,6.3071]
[1768523989807,5.38975311,142.78,142.73,6.3071]
[1768523990012,3.52657842,142.79,142.73,6.3071]
[1768523990208,5.38975311,142.78,142.73,6.3071]
[1768523990407,3.52657842,142.79,142.73,6.3071]
[1768523990613,5.3897623,142.78,142.73,6.3071]
[1768523990814,3.52657842,142.79,142.73,6.3071]
[1768523991010,5.3897623,142.78,142.73,6.3071]
[1768523991216,3.52657842,142.79,142.73,6.3071]
[1768523991416,5.38974116,142.78,142.73,6.3071]
[1768523991610,3.52657842,142.79,142.73,6.3071]
[1768523991810,5.38974116,142.78,142.73,6.3071]
[1768523992009,3.52657842,142.79,142.73,6.3071]
[1768523992211,5.38974116,142.78,142.73,6.3071]
[1768523992515,3.52657842,142.79,142.74,6.3067]
[1768523992715,5.38967414,142.78,142.74,6.3067]
[1768523992912,3.52657842,142.79,142.74,6.3067]
[1768523993112,5.38967414,142.78,142.74,6.3067]
[1768523993311,3.52657842,142.79,142.74,6.3067]
[1768523993513,5.38961517,142.78,142.74,6.3067]
[1768523993815,3.52657842,142.79,142.74,6.3067]
[1768523994118,5.38961517,142.78,142.74,6.3067]
[1768523994317,3.52657842,142.79,142.74,6.3067]
[1768523994511,5.38955806,142.78,142.74,6.3067]
[1768523994710,3.52657842,142.79,142.74,6.3067]
[1768523994911,5.38955805,142.78,142.74,6.3067]
[1768523995112,3.52657842,142.79,142.74,6.3067]
[1768523995307,5.38950274,142.78,142.74,6.3067]
[1768523995513,3.52657842,142.79,142.74,6.3067]
[1768523995813,5.38950274,142.78,142.74,6.3067]
[1768523996013,3.52657842,142.79,142.74,6.3067]
[1768523996214,5.38945365,142.78,142.74,6.3067]
[1768523996415,3.52657842,142.79,142.74,6.3067]
[1768523996614,5.38945365,142.78,142.74,6.3067]
[1768523996815,3.52657842,142.79,142.74,6.3067]
[1768523997115,5.38945365,142.78,142.74,6.3067]
[1768523997413,3.52657842,142.79,142.74,6.3067]
[1768523997613,5.38940582,142.78,142.74,6.3067]
[1768523997813,3.52657842,142.79,142.74,6.3067]
[1768523998014,5.38940582,142.78,142.74,6.3067]
[1768523998218,3.52657842,142.79,142.74,6.3067]
[1768523998413,5.38935923,142.78,142.74,6.3067]
[1768523998617,3.52657842,142.79,142.74,6.3067]
[1768523998819,5.38935923,142.78,142.74,6.3067]
[1768523999021,3.52657842,142.79,142.74,6.3067]
[1768523999320,5.38931007,142.78,142.74,6.3067]
[1768523999521,3.52657842,142.79,142.74,6.3067]
[1768523999720,5.38931007,142.78,142.74,6.3067]
[1768523999920,3.52657842,142.79,142.74,6.3067]
[1768524000122,5.38931007,142.78,142.74,6.3067]
[1768524000420,3.52657842,142.79,142.75,6.3061]
[1768524000621,3.35165033,142.8,142.75,6.3061]
[1768524000821,5.38869564,142.79,142.75,6.3061]
[1768524001020,3.35165033,142.8,142.75,6.3061]
[1768524001221,5.38810486,142.79,142.75,6.3061]
[1768524001520,3.35165033,142.8,142.75,6.3061]
[1768524001719,5.3881071,142.79,142.75,6.3061]
[1768524001918,3.35165033,142.8,142.75,6.3061]
[1768524002115,5.3881071,142.79,142.75,6.3061]
[1768524002320,3.35165033,142.8,142.75,6.3061]
[1768524002520,5.38758485,142.79,142.75,6.3061]
[1768524002721,3.35165033,142.8,142.75,6.3061]
[1768524003026,8.73923518,142.79,142.75,6.3061]
[1768524003226,3.35165033,142.79,142.75,6.3061]
[1768524009235,5.55156646,142.81,142.75,6.3061]
[1768524009532,8.73933244,142.8,142.75,6.3061]
[1768524009735,5.38767986,142.79,142.75,6.3061]
[1768524009922,3.35165033,142.8,142.75,6.3061]
[1768524010126,5.38767877,142.79,142.75,6.3061]
[1768524010328,3.35165033,142.8,142.75,6.3061]
[1768524010529,5.38788225,142.79,142.75,6.3061]
[1768524010731,3.35165033,142.8,142.75,6.3061]
[1768524011027,3.35165033,142.8,142.76,6.3057]
[1768524011626,2.19991613,142.81,142.77,6.3053]
[1768524011832,3.35165033,142.82,142.77,6.3053]
[1768524012023,5.389e-05,142.81,142.74,98.1014]
[1768524012226,5.55156646,142.83,142.74,98.1014]
[1768524012723,5.55156646,142.83,142.79,6.3044]
[1768524014034,3.35165033,142.83,142.79,6.3044]
[1768524020337,11.85346646,142.85,142.79,6.3044]
[1768524020639,3.35165033,142.85,142.8,6.3039]
[1768524021137,3.35165033,142.85,142.78,6.3045]
[1768524022939,3.35165033,142.85,142.79,6.3044]
[1768524025137,12.06244433,142.87,142.8,6.304]
[1768524025442,9.8625282,142.87,142.8,6.304]
[1768524026749,9.8625282,142.87,142.81,6.3036]
[1768524026750,3.5614282,142.87,142.81,6.3036]
[1768524033644,6.3005,142.88,142.81,6.3036]
[1768524034039,6.3005,142.88,142.82,6.3031]
[1768524035242,9.64672578,142.88,142.82,6.3031]
[1768524036948,3.34622578,142.88,142.82,6.3031]
[1768524049652,3.34622578,142.87,142.8,6.3037]
[1768524049852,3.34622578,142.87,142.75,98.0973]
[1768524050848,3.34622578,142.85,142.79,6.3045]
[1768524054057,3.34622578,142.85,142.77,6.3049]
[1768524054559,3.34622578,142.85,142.78,6.3047]
[1768524057857,9.64812578,142.85,142.78,6.3047]
[1768524058073,3.40197883,142.84,142.78,6.3047]
[1768524058759,3.40197883,142.83,142.76,6.3055]
[1768524060466,3.40197883,142.82,142.72,98.1149]
[1768524061665,3.40197883,142.81,142.7,98.1312]
[1768524062774,3.40197883,142.79,142.69,3.43250302]
[1768524063463,3.40197883,142.79,142.72,6.3074]
[1768524066469,9.70637883,142.8,142.72,6.3074]
[1768524066966,9.70637883,142.8,142.73,6.307]
[1768524067668,3.40197883,142.8,142.73,6.307]
[1768524068171,6.3036,142.82,142.74,6.3065]
[1768524068466,3.40197883,142.83,142.71,98.1199]
[1768524068869,3.40197883,142.83,142.75,6.3062]
[1768524069169,3.40197883,142.83,142.72,98.118]
[1768524069469,3.40197883,142.83,142.73,98.1116]
[1768524069860,3.40197883,142.83,142.77,6.3053]
[1768524079865,3.40197883,142.82,142.75,6.3058]
[1768524080771,9.70517883,142.82,142.75,6.3058]
[1768524081076,3.40197883,142.81,142.75,6.3058]
[1768524085376,3.36289772,142.8,142.73,6.3069]
[1768524086781,9.66699772,142.8,142.73,6.3069]
[1768524089280,9.90739971,142.79,142.72,6.3076]
[1768524091982,9.90739971,142.79,142.73,6.3071]
[1768524092272,9.90739971,142.79,142.69,98.1355]
[1768524092478,3.60289971,142.78,142.69,98.1355]
[1768524093280,3.60289971,142.78,142.69,100.33521266]
[1768524093779,3.60289971,142.78,142.72,6.3076]
[1768524101580,3.60289971,142.77,142.69,2.19971266]
[1768524101981,3.60289971,142.77,142.67,100.35081266]
[1768524102986,3.60289971,142.76,142.7,6.3084]
[1768524105692,9.90889971,142.76,142.68,6.309]
[1768524106190,9.90889971,142.76,142.67,2.19971266]
[1768524107184,3.60289971,142.75,142.68,6.3093]
[1768524110992,3.60289971,142.75,142.69,6.3088]
[1768524112097,3.28136697,142.77,142.7,6.3082]
[1768524112597,3.28136697,142.77,142.67,2.19971266]
[1768524113799,3.28136697,142.77,142.71,6.308]
[1768524121500,3.28136697,142.76,142.71,6.308]
[1768524137320,2.19971266,142.77,142.71,6.308]
[1768524137522,5.38780145,142.76,142.71,6.308]
[1768524137817,5.48107963,142.77,142.71,6.308]
[1768524138017,5.38780145,142.76,142.71,6.308]
[1768524138219,5.48107963,142.77,142.71,6.308]
[1768524138412,5.38840621,142.76,142.71,6.308]
[1768524138612,5.48107963,142.77,142.71,6.308]
[1768524138813,5.38840621,142.76,142.71,6.308]
[1768524139015,5.48107963,142.77,142.71,6.308]
[1768524139213,5.38894811,142.76,142.71,6.308]
[1768524139419,5.48107963,142.77,142.71,6.308]
[1768524139607,5.38900588,142.76,142.71,6.308]
[1768524139812,5.48107963,142.77,142.71,6.308]
[1768524140021,5.38900588,142.76,142.71,6.308]
[1768524140208,5.48107963,142.77,142.71,6.308]
[1768524140413,5.3894103,142.76,142.71,6.308]
[1768524140611,5.48107963,142.77,142.71,6.308]
[1768524140816,5.3894103,142.76,142.71,6.308]
[1768524141016,5.48107963,142.77,142.71,6.308]
[1768524141216,5.3894103,142.76,142.71,6.308]
[1768524141420,5.48107963,142.77,142.71,6.308]
[1768524141620,5.38982185,142.76,142.71,6.308]
[1768524141825,5.48107963,142.77,142.71,6.308]
[1768524142025,5.38982185,142.76,142.71,6.308]
[1768524142219,5.48107963,142.77,142.71,6.308]
[1768524142526,5.39029908,142.76,142.71,6.308]
[1768524142822,5.48107963,142.77,142.71,6.308]
[1768524143024,5.39029908,142.76,142.71,6.308]
[1768524143230,5.48107963,142.77,142.71,6.308]
[1768524143523,5.39085434,142.76,142.71,6.308]
[1768524143721,3.28136697,142.77,142.71,6.308]
[1768524143925,5.390818,142.76,142.71,6.308]
[1768524144118,3.28136697,142.77,142.71,6.308]
[1768524144323,5.39143297,142.76,142.71,6.308]
[1768524144520,3.28136697,142.77,142.71,6.308]
[1768524144723,5.39148458,142.76,142.71,6.308]
[1768524145018,3.28136697,142.77,142.71,6.308]
[1768524145225,5.39155727,142.76,142.71,6.308]
[1768524145424,3.28136697,142.77,142.71,6.308]
[1768524145627,5.39232265,142.76,142.71,6.308]
[1768524145822,3.28136697,142.77,142.71,6.308]
[1768524146024,5.39232265,142.76,142.71,6.308]
[1768524146322,5.39330785,142.75,142.71,6.308]
[1768524146525,3.28136697,142.77,142.71,6.308]
[1768524146825,5.39333451,142.76,142.71,6.308]
[1768524147124,5.39333451,142.75,142.71,6.308]
[1768524147324,3.28136697,142.77,142.71,6.308]
[1768524147525,5.39362405,142.76,142.71,6.308]
[1768524147717,5.39362405,142.75,142.71,6.308]
[1768524147917,3.28136697,142.77,142.71,6.308]
[1768524148122,5.39362405,142.76,142.71,6.308]
[1768524148322,5.39362405,142.75,142.71,6.308]
[1768524148524,3.28136697,142.77,142.71,6.308]
[1768524148726,5.39396501,142.76,142.71,6.308]
[1768524148926,5.39396501,142.75,142.71,6.308]
[1768524149227,3.28136697,142.77,142.71,6.308]
[1768524149415,5.39437776,142.76,142.71,6.308]
[1768524149619,5.39437776,142.75,142.71,6.308]
[1768524149820,3.28136697,142.77,142.71,6.308]
[1768524150119,5.39437776,142.76,142.71,6.308]
[1768524150423,5.39437776,142.75,142.71,6.308]
[1768524150626,3.28136697,142.77,142.71,6.308]
[1768524150820,3.59182419,142.79,142.72,6.3076]
[1768524151024,3.59182419,142.79,142.7,2.19971266]
[1768524151025,5.39417774,142.78,142.7,2.19971266]
[1768524151219,3.59182419,142.79,142.7,2.19971266]
[1768524152822,3.59182419,142.79,142.73,6.3067]
[1768524167536,5.3640189,142.78,142.72,6.3076]
[1768524167741,9.89632419,142.79,142.72,6.3076]
[1768524167947,5.36390089,142.78,142.72,6.3076]
[1768524168242,9.89632419,142.79,142.72,6.3076]
[1768524168444,5.36400074,142.78,142.72,6.3076]
[1768524168644,9.89632419,142.79,142.72,6.3076]
[1768524168844,5.36400074,142.78,142.72,6.3076]
[1768524169145,9.89632419,142.79,142.72,6.3076]
[1768524169338,5.36411656,142.78,142.72,6.3076]
[1768524169539,9.89632419,142.79,142.72,6.3076]
[1768524169740,5.36405972,142.78,142.72,6.3076]
[1768524169942,9.89632419,142.79,142.72,6.3076]
[1768524170140,5.36405972,142.78,142.72,6.3076]
[1768524170340,9.89632419,142.79,142.72,6.3076]
[1768524170540,5.36409816,142.78,142.72,6.3076]
[1768524170840,9.89632419,142.79,142.72,6.3076]
[1768524171041,5.36409816,142.78,142.72,6.3076]
[1768524171240,9.89632419,142.79,142.72,6.3076]
[1768524171441,5.36414746,142.78,142.72,6.3076]
[1768524171637,9.89632419,142.79,142.72,6.3076]
[1768524171837,8.75980385,142.78,142.72,6.3076]
[1768524172038,3.39565639,142.77,142.7,6.308]
[1768524173850,9.70105639,142.77,142.7,6.308]
[1768524174144,9.70105639,142.77,142.71,6.308]
[1768524177952,3.39565639,142.77,142.71,6.308]
[1768524181955,3.39565639,142.77,142.72,6.3074]
[1768524182753,9.70115639,142.77,142.68,98.1453]
[1768524182955,3.39565639,142.76,142.68,98.1453]
[1768524183752,3.39565639,142.76,142.71,6.3079]
[1768524187461,3.39565639,142.76,142.7,6.3084]
[1768524188759,3.39565639,142.76,142.69,6.3089]
[1768524188760,9.70175639,142.76,142.69,6.3089]
[1768524190763,9.70265639,142.74,142.66,6.3098]
[1768524191060,9.70265639,142.74,142.63,114.23782287]
[1768524191564,9.70265639,142.74,142.67,6.3097]
[1768524192250,9.70275639,142.73,142.67,6.3097]
[1768524200767,3.43642287,142.77,142.65,6.3104]
[1768524200768,9.70325639,142.72,142.65,6.3104]
[1768524201355,9.64411918,142.71,142.65,6.3104]
[1768524204471,3.33601918,142.7,142.65,6.3104]
[1768524205972,3.33601918,142.7,142.66,6.3102]
[1768524213170,9.85467023,142.74,142.67,6.3096]
[1768524213473,9.85467023,142.74,142.64,98.1707]
[1768524213776,3.54797023,142.76,142.66,98.1595]
[1768524214074,3.54797023,142.76,142.67,98.1511]
[1768524214269,9.85327023,142.78,142.71,6.308]
[1768524214974,9.85327023,142.78,142.68,98.1447]
[1768524214975,3.54797023,142.78,142.72,6.3075]
[1768524215270,9.85247023,142.8,142.71,2.19909247]
[1768524215966,3.54797023,142.8,142.73,6.3071]
[1768524216172,3.54797023,142.8,142.71,2.19909247]
[1768524216368,9.85147023,142.82,142.71,100.31999247]
[1768524216569,9.85147023,142.82,142.73,2.19909247]
[1768524216872,9.85147023,142.82,142.74,6.3066]
[1768524217273,3.54797023,142.82,142.73,2.19909247]
[1768524218678,3.54797023,142.82,142.76,6.3055]
[1768524220774,198.04,142.92,142.73,100.30669247]
[1768524220976,3.54797023,142.86,142.78,6.3046]
[1768524221476,3.54797023,142.84,142.76,6.3055]
[1768524222274,3.54797023,142.82,142.74,8.50549247]
[1768524223474,3.54797023,142.82,142.75,6.3061]
[1768524231784,2.19909247,142.81,142.75,6.3061]
[1768524232287,5.68196789,142.81,142.75,6.3061]
[1768524233098,3.48287542,142.8,142.75,6.3061]
[1768524236094,3.48287542,142.8,142.73,6.3068]
[1768524237796,3.48287542,142.79,142.73,6.3068]
[1768524240302,3.48287542,142.78,142.72,6.3075]
[1768524249708,9.78777542,142.78,142.72,6.3075]
[1768524255624,3.48287542,142.8,142.69,100.33749247]
[1768524256929,6.3046,142.79,142.69,100.33749247]
[1768524257929,6.3046,142.79,142.73,6.3071]
[1768524258731,9.78697542,142.8,142.74,6.3067]
[1768524261132,3.48287542,142.8,142.74,6.3067]
[1768524264732,3.48287542,142.8,142.75,6.3061]
[1768524264929,3.48287542,142.8,142.72,98.1178]
[1768524265634,3.48287542,142.8,142.75,6.3061]
[1768524266133,3.33222629,142.82,142.72,100.31689247]
[1768524266926,3.33222629,142.82,142.76,6.3058]
[1768524269936,3.33222629,142.82,142.77,6.3054]
[1768524279642,3.33222629,142.82,142.78,6.3048]
[1768524284449,3.33222629,142.82,142.74,98.1022]
[1768524284450,3.2632152,142.86,142.8,6.3037]
[1768524302662,3.2632152,142.86,142.81,6.3036]
[1768524309162,3.2632152,142.86,142.8,6.304]
[1768524310662,3.2632152,142.86,142.76,98.086]
[1768524310861,3.2632152,142.86,142.79,6.3045]
[1768524312164,9.5646152,142.86,142.79,6.3045]
[1768524312362,3.49361333,142.85,142.79,6.3045]
[1768524317267,3.49361333,142.85,142.8,6.304]
[1768524317961,3.49361333,142.88,142.76,98.086]
[1768524318166,3.49361333,142.87,142.82,6.3031]
[1768524323467,3.49361333,142.87,142.81,6.3036]